[Event "Titled Tuesday Blitz August 15 Late 2023"]
[White "Badmatsyrenov, Oleg"]
[Black "Koc, Przemyslaw"]
[WhiteFideId "24115762"]
[BlackFideId "1109081"]
[WhiteElo "2765"]
[BlackElo "2513"]
[Result "1-0"]
[Round "4"]
[TimeControl "180+1"]
[Date "2023.08.15"]
[WhiteClock "0:01:31"]
[BlackClock "0:00:24"]
[Board "48"]

1. e4 {[%clk 0:03:00]}  d6 {[%clk 0:02:59]} 2. d4 {[%clk 0:03:00]}  Nf6 {[%clk 0:03:00]} 3. Nc3 {[%clk 0:03:01]}  e5 {[%clk 0:03:00]} 4. Nf3 {[%clk 0:03:00]}  Nbd7 {[%clk 0:03:00]} 5. g4 {[%clk 0:03:00]}  Nxg4 {[%clk 0:03:00]} 6. Rg1 {[%clk 0:03:00]}  Ngf6 {[%clk 0:03:00]} 7. Bc4 {[%clk 0:03:00]}  h6 {[%clk 0:03:00]} 8. Be3 {[%clk 0:02:58]}  c6 {[%clk 0:03:00]} 9. dxe5 {[%clk 0:02:58]}  dxe5 {[%clk 0:02:58]} 10. Qd3 {[%clk 0:02:59]}  b5 {[%clk 0:02:57]} 11. Bb3 {[%clk 0:02:59]}  a5 {[%clk 0:02:53]} 12. a4 {[%clk 0:02:57]}  b4 {[%clk 0:02:52]} 13. Qc4 {[%clk 0:02:58]}  Qe7 {[%clk 0:02:48]} 14. Qxc6 {[%clk 0:02:58]}  Rb8 {[%clk 0:02:42]} 15. Nb5 {[%clk 0:02:58]}  Bb7 {[%clk 0:02:33]} 16. Qc7 {[%clk 0:02:54]}  Bxe4 {[%clk 0:02:16]} 17. O-O-O {[%clk 0:02:51]}  Rxb5 {[%clk 0:02:04]} 18. axb5 {[%clk 0:02:41]}  Bxf3 {[%clk 0:02:04]} 19. b6 {[%clk 0:02:33]}  g6 {[%clk 0:00:49]} 20. Ba4 {[%clk 0:02:16]}  Qd8 {[%clk 0:00:44]} 21. Qxe5+ {[%clk 0:02:00]}  Be7 {[%clk 0:00:43]} 22. Rxd7 {[%clk 0:01:59]}  Qxd7 {[%clk 0:00:32]} 23. Bxd7+ {[%clk 0:01:56]}  Kxd7 {[%clk 0:00:33]} 24. Bc5 {[%clk 0:01:41]}  Bxc5 {[%clk 0:00:24]} 25. Qxf6 {[%clk 0:01:31]} 1-0


[Site "https://www.chess.com"]

[Event "Titled Tuesday Blitz August 15 Late 2023"]
[White "Mickiewicz, Piotr"]
[Black "Morefield, Jason"]
[WhiteFideId "1114891"]
[BlackFideId "30920825"]
[WhiteElo "2511"]
[BlackElo "2753"]
[Result "1-0"]
[Round "4"]
[TimeControl "180+1"]
[Date "2023.08.15"]
[WhiteClock "0:00:15"]
[BlackClock "0:00:00"]
[Board "49"]

1. d4 {[%clk 0:03:00]}  Nf6 {[%clk 0:02:56]} 2. c4 {[%clk 0:03:01]}  g6 {[%clk 0:02:56]} 3. Nc3 {[%clk 0:03:00]}  Bg7 {[%clk 0:02:56]} 4. e4 {[%clk 0:03:00]}  O-O {[%clk 0:02:56]} 5. Be2 {[%clk 0:03:01]}  d6 {[%clk 0:02:57]} 6. Bg5 {[%clk 0:03:00]}  c5 {[%clk 0:02:56]} 7. d5 {[%clk 0:02:59]}  b5 {[%clk 0:02:54]} 8. cxb5 {[%clk 0:02:57]}  a6 {[%clk 0:02:55]} 9. bxa6 {[%clk 0:02:42]}  Bxa6 {[%clk 0:02:53]} 10. Nf3 {[%clk 0:02:42]}  Qa5 {[%clk 0:02:49]} 11. O-O {[%clk 0:02:40]}  Nbd7 {[%clk 0:02:49]} 12. Nd2 {[%clk 0:02:37]}  Rfb8 {[%clk 0:02:38]} 13. Rb1 {[%clk 0:02:33]}  Bxe2 {[%clk 0:02:30]} 14. Qxe2 {[%clk 0:02:34]}  h6 {[%clk 0:02:19]} 15. Bh4 {[%clk 0:02:30]}  Qa6 {[%clk 0:01:46]} 16. Qxa6 {[%clk 0:02:24]}  Rxa6 {[%clk 0:01:47]} 17. Rfc1 {[%clk 0:02:23]}  Ne5 {[%clk 0:01:37]} 18. Rc2 {[%clk 0:02:19]}  Nd3 {[%clk 0:01:32]} 19. a3 {[%clk 0:02:13]}  g5 {[%clk 0:01:14]} 20. Bg3 {[%clk 0:02:12]}  Nd7 {[%clk 0:01:07]} 21. Nc4 {[%clk 0:02:10]}  Nb6 {[%clk 0:01:01]} 22. Ne3 {[%clk 0:01:52]}  Na4 {[%clk 0:00:53]} 23. Nxa4 {[%clk 0:01:41]}  Rxa4 {[%clk 0:00:54]} 24. Nf5 {[%clk 0:01:41]}  Rxe4 {[%clk 0:00:46]} 25. f3 {[%clk 0:01:19]}  Ra4 {[%clk 0:00:44]} 26. Nxe7+ {[%clk 0:01:16]}  Kh7 {[%clk 0:00:43]} 27. Bxd6 {[%clk 0:01:12]}  Bd4+ {[%clk 0:00:34]} 28. Kf1 {[%clk 0:01:12]}  Rb3 {[%clk 0:00:34]} 29. Nf5 {[%clk 0:01:03]}  Bxb2 {[%clk 0:00:32]} 30. Bxc5 {[%clk 0:01:00]}  Nxc5 {[%clk 0:00:27]} 31. Rxc5 {[%clk 0:01:01]}  Bxa3 {[%clk 0:00:22]} 32. Rxb3 {[%clk 0:00:55]}  Bxc5 {[%clk 0:00:23]} 33. Rc3 {[%clk 0:00:47]}  Ra1+ {[%clk 0:00:21]} 34. Ke2 {[%clk 0:00:47]}  Ra2+ {[%clk 0:00:20]} 35. Kd3 {[%clk 0:00:46]}  Bg1 {[%clk 0:00:20]} 36. g4 {[%clk 0:00:44]}  Bxh2 {[%clk 0:00:19]} 37. Rc6 {[%clk 0:00:42]}  Bf4 {[%clk 0:00:16]} 38. Rxh6+ {[%clk 0:00:42]}  Kg8 {[%clk 0:00:16]} 39. Rc6 {[%clk 0:00:39]}  Rd2+ {[%clk 0:00:14]} 40. Ke4 {[%clk 0:00:35]}  Re2+ {[%clk 0:00:14]} 41. Kd4 {[%clk 0:00:35]}  Rd2+ {[%clk 0:00:13]} 42. Kc4 {[%clk 0:00:34]}  Rf2 {[%clk 0:00:07]} 43. d6 {[%clk 0:00:33]}  Bxd6 {[%clk 0:00:06]} 44. Rxd6 {[%clk 0:00:32]}  Rxf3 {[%clk 0:00:06]} 45. Kd5 {[%clk 0:00:23]}  Rf4 {[%clk 0:00:05]} 46. Ke5 {[%clk 0:00:23]}  Kh7 {[%clk 0:00:04]} 47. Rh6+ {[%clk 0:00:21]}  Kg8 {[%clk 0:00:05]} 48. Ra6 {[%clk 0:00:19]}  Kh7 {[%clk 0:00:05]} 49. Rh6+ {[%clk 0:00:17]}  Kg8 {[%clk 0:00:00]} 50. Rh3 {[%clk 0:00:15]} 1-0


[Site "https://www.chess.com"]

[Event "Titled Tuesday Blitz August 15 Late 2023"]
[White "Ghazarian, Kirk"]
[Black "Arutla, Aditya"]
[WhiteFideId "30908604"]
[BlackFideId "30961998"]
[WhiteElo "2746"]
[BlackElo "2510"]
[Result "1-0"]
[Round "4"]
[TimeControl "180+1"]
[Date "2023.08.15"]
[WhiteClock "0:02:25"]
[BlackClock "0:02:00"]
[Board "50"]

1. e4 {[%clk 0:03:00]}  c5 {[%clk 0:02:58]} 2. b3 {[%clk 0:03:00]}  e6 {[%clk 0:02:57]} 3. Bb2 {[%clk 0:02:59]}  d5 {[%clk 0:02:58]} 4. exd5 {[%clk 0:02:57]}  exd5 {[%clk 0:02:58]} 5. g3 {[%clk 0:02:56]}  Nf6 {[%clk 0:02:57]} 6. Bg2 {[%clk 0:02:57]}  Bg4 {[%clk 0:02:55]} 7. Ne2 {[%clk 0:02:54]}  Nc6 {[%clk 0:02:51]} 8. O-O {[%clk 0:02:50]}  Be7 {[%clk 0:02:49]} 9. h3 {[%clk 0:02:50]}  Be6 {[%clk 0:02:47]} 10. d4 {[%clk 0:02:49]}  cxd4 {[%clk 0:02:45]} 11. Nxd4 {[%clk 0:02:48]}  O-O {[%clk 0:02:46]} 12. Nxe6 {[%clk 0:02:43]}  fxe6 {[%clk 0:02:45]} 13. Nd2 {[%clk 0:02:42]}  Qd7 {[%clk 0:02:43]} 14. Qe2 {[%clk 0:02:41]}  Bd6 {[%clk 0:02:39]} 15. c4 {[%clk 0:02:40]}  d4 {[%clk 0:02:37]} 16. Ne4 {[%clk 0:02:36]}  Nxe4 {[%clk 0:02:37]} 17. Qxe4 {[%clk 0:02:37]}  e5 {[%clk 0:02:34]} 18. Rac1 {[%clk 0:02:34]}  Bc5 {[%clk 0:02:32]} 19. Qd5+ {[%clk 0:02:32]}  Qxd5 {[%clk 0:02:31]} 20. cxd5 {[%clk 0:02:33]}  Nb4 {[%clk 0:02:15]} 21. Rxc5 {[%clk 0:02:32]}  Nd3 {[%clk 0:02:15]} 22. Rc2 {[%clk 0:02:32]}  Nb4 {[%clk 0:02:16]} 23. Rc7 {[%clk 0:02:27]}  Nd3 {[%clk 0:02:12]} 24. Ba3 {[%clk 0:02:25]}  Rfc8 {[%clk 0:02:00]} 25. d6 {[%clk 0:02:25]} 1-0


[Site "https://www.chess.com"]

[Event "Titled Tuesday Blitz August 15 Late 2023"]
[White "Hristodoulou, Panagiotis"]
[Black "Boruchovsky, Avital"]
[WhiteFideId "4214340"]
[BlackFideId "2800055"]
[WhiteElo "2507"]
[BlackElo "2739"]
[Result "0-1"]
[Round "4"]
[TimeControl "180+1"]
[Date "2023.08.15"]
[WhiteClock "0:00:33"]
[BlackClock "0:01:33"]
[Board "51"]

1. d4 {[%clk 0:02:52]}  c5 {[%clk 0:03:00]} 2. d5 {[%clk 0:02:51]}  g6 {[%clk 0:03:00]} 3. e4 {[%clk 0:02:50]}  Bg7 {[%clk 0:03:01]} 4. Nf3 {[%clk 0:02:48]}  d6 {[%clk 0:03:01]} 5. h3 {[%clk 0:02:48]}  Nf6 {[%clk 0:03:01]} 6. Nc3 {[%clk 0:02:47]}  O-O {[%clk 0:03:00]} 7. a4 {[%clk 0:02:39]}  Na6 {[%clk 0:02:57]} 8. Be2 {[%clk 0:02:35]}  Nb4 {[%clk 0:02:57]} 9. O-O {[%clk 0:02:33]}  a6 {[%clk 0:02:53]} 10. Bf4 {[%clk 0:02:28]}  Nd7 {[%clk 0:02:47]} 11. Nd2 {[%clk 0:02:24]}  f5 {[%clk 0:02:44]} 12. exf5 {[%clk 0:02:22]}  Rxf5 {[%clk 0:02:44]} 13. Bh2 {[%clk 0:02:19]}  Bxc3 {[%clk 0:02:35]} 14. bxc3 {[%clk 0:02:18]}  Nxd5 {[%clk 0:02:35]} 15. Ne4 {[%clk 0:02:10]}  N7f6 {[%clk 0:02:19]} 16. Bc4 {[%clk 0:02:03]}  Kg7 {[%clk 0:01:53]} 17. g4 {[%clk 0:01:14]}  Nxe4 {[%clk 0:01:52]} 18. gxf5 {[%clk 0:01:14]}  Ndxc3 {[%clk 0:01:51]} 19. Qf3 {[%clk 0:01:14]}  Bxf5 {[%clk 0:01:50]} 20. Ra3 {[%clk 0:01:10]}  Qa5 {[%clk 0:01:44]} 21. Rb3 {[%clk 0:00:52]}  b5 {[%clk 0:01:38]} 22. axb5 {[%clk 0:00:53]}  axb5 {[%clk 0:01:38]} 23. Bd3 {[%clk 0:00:48]}  Nd2 {[%clk 0:01:34]} 24. Qe2 {[%clk 0:00:33]}  Nxe2+ {[%clk 0:01:33]} 0-1


[Site "https://www.chess.com"]

[Event "Titled Tuesday Blitz August 15 Late 2023"]
[White "Jaracz, Pawel"]
[Black "Jovic, Stanoje"]
[WhiteFideId "1102222"]
[BlackFideId "905020"]
[WhiteElo "2727"]
[BlackElo "2489"]
[Result "1-0"]
[Round "4"]
[TimeControl "180+1"]
[Date "2023.08.15"]
[WhiteClock "0:00:28"]
[BlackClock "0:00:00"]
[Board "52"]

1. e4 {[%clk 0:02:58]}  c6 {[%clk 0:02:59]} 2. d4 {[%clk 0:02:56]}  d5 {[%clk 0:02:59]} 3. e5 {[%clk 0:02:55]}  c5 {[%clk 0:02:59]} 4. dxc5 {[%clk 0:02:55]}  e6 {[%clk 0:02:59]} 5. a3 {[%clk 0:02:55]}  Bxc5 {[%clk 0:02:58]} 6. Qg4 {[%clk 0:02:54]}  Ne7 {[%clk 0:02:58]} 7. b4 {[%clk 0:02:49]}  Bb6 {[%clk 0:02:55]} 8. Bb2 {[%clk 0:02:49]}  O-O {[%clk 0:02:53]} 9. Nf3 {[%clk 0:02:47]}  Nbc6 {[%clk 0:02:50]} 10. Bd3 {[%clk 0:02:42]}  Nf5 {[%clk 0:02:50]} 11. O-O {[%clk 0:02:41]}  Bd7 {[%clk 0:02:50]} 12. Nbd2 {[%clk 0:02:40]}  a5 {[%clk 0:02:48]} 13. b5 {[%clk 0:02:35]}  Nce7 {[%clk 0:02:47]} 14. c4 {[%clk 0:02:34]}  Rc8 {[%clk 0:02:33]} 15. Rad1 {[%clk 0:02:31]}  Qc7 {[%clk 0:02:28]} 16. Qh5 {[%clk 0:02:27]}  a4 {[%clk 0:01:54]} 17. g4 {[%clk 0:02:21]}  Nh6 {[%clk 0:01:52]} 18. Rc1 {[%clk 0:01:45]}  Qb8 {[%clk 0:01:44]} 19. Bd4 {[%clk 0:01:21]}  Ba5 {[%clk 0:01:34]} 20. c5 {[%clk 0:01:17]}  Ng6 {[%clk 0:01:32]} 21. Qg5 {[%clk 0:01:11]}  Bd8 {[%clk 0:01:22]} 22. Qe3 {[%clk 0:01:10]}  Nxg4 {[%clk 0:01:21]} 23. Qe2 {[%clk 0:01:10]}  Nf4 {[%clk 0:01:15]} 24. Bxh7+ {[%clk 0:01:05]}  Kxh7 {[%clk 0:01:11]} 25. Ng5+ {[%clk 0:01:06]}  Bxg5 {[%clk 0:01:09]} 26. Qxg4 {[%clk 0:01:07]}  Bh6 {[%clk 0:01:06]} 27. c6 {[%clk 0:00:56]}  bxc6 {[%clk 0:01:02]} 28. b6 {[%clk 0:00:56]}  f6 {[%clk 0:00:58]} 29. Rfe1 {[%clk 0:00:54]}  Nd3 {[%clk 0:00:48]} 30. Rc3 {[%clk 0:00:52]}  Nxe1 {[%clk 0:00:42]} 31. Rg3 {[%clk 0:00:53]}  f5 {[%clk 0:00:35]} 32. Qg6+ {[%clk 0:00:53]}  Kh8 {[%clk 0:00:35]} 33. Rh3 {[%clk 0:00:52]}  Be8 {[%clk 0:00:25]} 34. Rxh6+ {[%clk 0:00:51]}  gxh6 {[%clk 0:00:25]} 35. Qxh6+ {[%clk 0:00:52]}  Kg8 {[%clk 0:00:24]} 36. Qg5+ {[%clk 0:00:53]}  Kh7 {[%clk 0:00:24]} 37. Qh4+ {[%clk 0:00:49]}  Kg7 {[%clk 0:00:23]} 38. Qe7+ {[%clk 0:00:48]}  Bf7 {[%clk 0:00:17]} 39. Qf6+ {[%clk 0:00:47]}  Kh7 {[%clk 0:00:16]} 40. Qh4+ {[%clk 0:00:44]}  Kg6 {[%clk 0:00:16]} 41. Qf6+ {[%clk 0:00:43]}  Kh5 {[%clk 0:00:11]} 42. Kf1 {[%clk 0:00:38]}  Qb7 {[%clk 0:00:10]} 43. Kxe1 {[%clk 0:00:37]}  Rg8 {[%clk 0:00:06]} 44. Nf3 {[%clk 0:00:37]}  Rg4 {[%clk 0:00:06]} 45. Be3 {[%clk 0:00:35]}  f4 {[%clk 0:00:03]} 46. Bxf4 {[%clk 0:00:28]}  Bg6 {[%clk 0:00:00]} 47. h3 {[%clk 0:00:28]} 1-0


[Site "https://www.chess.com"]

[Event "Titled Tuesday Blitz August 15 Late 2023"]
[White "Tsyhanchuk, Stanislav"]
[Black "Papasimakopoulos, Alexandros"]
[WhiteFideId "13505130"]
[BlackFideId "4244125"]
[WhiteElo "2459"]
[BlackElo "2702"]
[Result "0-1"]
[Round "4"]
[TimeControl "180+1"]
[Date "2023.08.15"]
[WhiteClock "0:00:03"]
[BlackClock "0:00:44"]
[Board "57"]

1. c4 {[%clk 0:03:00]}  e6 {[%clk 0:02:57]} 2. Nc3 {[%clk 0:03:00]}  d5 {[%clk 0:02:58]} 3. cxd5 {[%clk 0:03:01]}  exd5 {[%clk 0:02:59]} 4. d4 {[%clk 0:03:01]}  c6 {[%clk 0:02:58]} 5. Nf3 {[%clk 0:03:01]}  Bd6 {[%clk 0:02:58]} 6. Bg5 {[%clk 0:02:58]}  Ne7 {[%clk 0:02:56]} 7. e3 {[%clk 0:02:56]}  f6 {[%clk 0:02:56]} 8. Bh4 {[%clk 0:02:56]}  Bf5 {[%clk 0:02:56]} 9. Bd3 {[%clk 0:02:54]}  Nd7 {[%clk 0:02:56]} 10. Bg3 {[%clk 0:02:53]}  Nf8 {[%clk 0:02:53]} 11. a4 {[%clk 0:02:49]}  a5 {[%clk 0:02:45]} 12. Qc2 {[%clk 0:02:48]}  Bxd3 {[%clk 0:02:37]} 13. Qxd3 {[%clk 0:02:49]}  Nfg6 {[%clk 0:02:26]} 14. O-O {[%clk 0:02:38]}  Bxg3 {[%clk 0:02:24]} 15. hxg3 {[%clk 0:02:39]}  O-O {[%clk 0:02:24]} 16. Rab1 {[%clk 0:02:29]}  Qd6 {[%clk 0:02:24]} 17. e4 {[%clk 0:02:26]}  dxe4 {[%clk 0:02:24]} 18. Nxe4 {[%clk 0:02:27]}  Qb4 {[%clk 0:02:24]} 19. b3 {[%clk 0:02:22]}  Nd5 {[%clk 0:02:24]} 20. Nc5 {[%clk 0:02:14]}  Rfe8 {[%clk 0:02:17]} 21. Nd2 {[%clk 0:02:02]}  b6 {[%clk 0:02:12]} 22. Nce4 {[%clk 0:02:00]}  Rad8 {[%clk 0:02:03]} 23. Nc4 {[%clk 0:01:58]}  Kh8 {[%clk 0:01:49]} 24. Rb2 {[%clk 0:01:45]}  Nge7 {[%clk 0:01:38]} 25. Qd2 {[%clk 0:01:30]}  Nf5 {[%clk 0:01:32]} 26. Qxb4 {[%clk 0:01:27]}  Nxb4 {[%clk 0:01:31]} 27. f3 {[%clk 0:01:15]}  Nd5 {[%clk 0:01:28]} 28. Rd1 {[%clk 0:01:08]}  h5 {[%clk 0:01:23]} 29. Kf2 {[%clk 0:01:08]}  Kg8 {[%clk 0:01:21]} 30. Rbd2 {[%clk 0:01:02]}  Rd7 {[%clk 0:01:14]} 31. Rh1 {[%clk 0:01:01]}  g6 {[%clk 0:01:11]} 32. Nxb6 {[%clk 0:00:57]}  Nxb6 {[%clk 0:01:12]} 33. Nxf6+ {[%clk 0:00:57]}  Kf7 {[%clk 0:01:12]} 34. Nxd7 {[%clk 0:00:57]}  Nxd7 {[%clk 0:01:13]} 35. d5 {[%clk 0:00:55]}  c5 {[%clk 0:01:12]} 36. Rc1 {[%clk 0:00:51]}  Nd4 {[%clk 0:01:11]} 37. Rc3 {[%clk 0:00:49]}  Rb8 {[%clk 0:01:09]} 38. Rdd3 {[%clk 0:00:46]}  Ke7 {[%clk 0:01:07]} 39. Re3+ {[%clk 0:00:33]}  Kd6 {[%clk 0:01:06]} 40. g4 {[%clk 0:00:30]}  hxg4 {[%clk 0:01:03]} 41. f4 {[%clk 0:00:30]}  Nf6 {[%clk 0:01:04]} 42. Re5 {[%clk 0:00:11]}  Nxd5 {[%clk 0:00:55]} 43. Rc1 {[%clk 0:00:07]}  Nxf4 {[%clk 0:00:52]} 44. Re3 {[%clk 0:00:07]}  Nd5 {[%clk 0:00:44]} 45. Rg3 {[%clk 0:00:06]}  Rf8+ {[%clk 0:00:44]} 46. Kg1 {[%clk 0:00:03]}  Ne2+ {[%clk 0:00:44]} 0-1


[Site "https://www.chess.com"]

[Event "Titled Tuesday Blitz August 15 Late 2023"]
[White "Hoang, Thi Bao Tram"]
[Black "Harriott, Tyrell"]
[WhiteFideId "12401102"]
[BlackFideId "2086484"]
[WhiteElo "2673"]
[BlackElo "2433"]
[Result "1-0"]
[Round "4"]
[TimeControl "180+1"]
[Date "2023.08.15"]
[WhiteClock "0:00:02"]
[BlackClock "0:00:00"]
[Board "62"]

1. d4 {[%clk 0:03:00]}  e6 {[%clk 0:02:58]} 2. g3 {[%clk 0:02:52]}  d5 {[%clk 0:02:58]} 3. Bg2 {[%clk 0:02:52]}  Bd6 {[%clk 0:02:58]} 4. c4 {[%clk 0:02:51]}  c6 {[%clk 0:02:58]} 5. Nc3 {[%clk 0:02:21]}  f5 {[%clk 0:02:57]} 6. Nh3 {[%clk 0:02:18]}  Nf6 {[%clk 0:02:57]} 7. O-O {[%clk 0:02:18]}  O-O {[%clk 0:02:55]} 8. Bf4 {[%clk 0:02:18]}  Be7 {[%clk 0:02:54]} 9. Qb3 {[%clk 0:02:11]}  Ne4 {[%clk 0:02:50]} 10. f3 {[%clk 0:02:07]}  Nf6 {[%clk 0:02:48]} 11. Rad1 {[%clk 0:02:03]}  Nbd7 {[%clk 0:02:45]} 12. cxd5 {[%clk 0:01:50]}  exd5 {[%clk 0:02:45]} 13. e4 {[%clk 0:01:51]}  Nb6 {[%clk 0:02:37]} 14. e5 {[%clk 0:01:49]}  Nh5 {[%clk 0:02:36]} 15. Bc1 {[%clk 0:01:49]}  Be6 {[%clk 0:02:30]} 16. f4 {[%clk 0:01:47]}  Qd7 {[%clk 0:02:22]} 17. Kh1 {[%clk 0:01:43]}  Kh8 {[%clk 0:02:15]} 18. Ng5 {[%clk 0:01:26]}  Bg8 {[%clk 0:02:07]} 19. Bf3 {[%clk 0:01:23]}  g6 {[%clk 0:02:05]} 20. Bxh5 {[%clk 0:01:20]}  gxh5 {[%clk 0:02:05]} 21. Ne2 {[%clk 0:01:19]}  Nc4 {[%clk 0:01:58]} 22. Qf3 {[%clk 0:01:18]}  Qe8 {[%clk 0:01:58]} 23. b3 {[%clk 0:01:18]}  Nb6 {[%clk 0:01:57]} 24. a4 {[%clk 0:01:12]}  Qg6 {[%clk 0:01:51]} 25. Be3 {[%clk 0:01:09]}  Rac8 {[%clk 0:01:50]} 26. Rc1 {[%clk 0:01:09]}  Na8 {[%clk 0:01:49]} 27. Ng1 {[%clk 0:01:00]}  Nc7 {[%clk 0:01:47]} 28. Qe2 {[%clk 0:01:01]}  h6 {[%clk 0:01:39]} 29. N5h3 {[%clk 0:00:55]}  Ne6 {[%clk 0:01:39]} 30. Nf3 {[%clk 0:00:55]}  b6 {[%clk 0:01:38]} 31. Rfd1 {[%clk 0:00:53]}  Qg4 {[%clk 0:01:32]} 32. Nf2 {[%clk 0:00:53]}  Qg6 {[%clk 0:01:30]} 33. Qa6 {[%clk 0:00:48]}  Rc7 {[%clk 0:01:26]} 34. Rc2 {[%clk 0:00:44]}  Rfc8 {[%clk 0:01:25]} 35. Rdc1 {[%clk 0:00:44]}  c5 {[%clk 0:01:07]} 36. Qe2 {[%clk 0:00:32]}  Bf7 {[%clk 0:01:00]} 37. Qd2 {[%clk 0:00:28]}  Rg8 {[%clk 0:00:55]} 38. Rg1 {[%clk 0:00:24]}  Rgc8 {[%clk 0:00:48]} 39. Rgc1 {[%clk 0:00:23]}  Kh7 {[%clk 0:00:45]} 40. a5 {[%clk 0:00:21]}  Bg8 {[%clk 0:00:42]} 41. axb6 {[%clk 0:00:21]}  axb6 {[%clk 0:00:42]} 42. Qe2 {[%clk 0:00:21]}  Kh8 {[%clk 0:00:41]} 43. Qb5 {[%clk 0:00:21]}  Rc6 {[%clk 0:00:38]} 44. Nd3 {[%clk 0:00:14]}  Qg4 {[%clk 0:00:31]} 45. Rf2 {[%clk 0:00:13]}  Bf7 {[%clk 0:00:20]} 46. Nde1 {[%clk 0:00:14]}  Be8 {[%clk 0:00:18]} 47. Qd3 {[%clk 0:00:12]}  Qg8 {[%clk 0:00:15]} 48. Qxf5 {[%clk 0:00:10]}  Bg6 {[%clk 0:00:14]} 49. Qh3 {[%clk 0:00:10]}  Be4 {[%clk 0:00:14]} 50. Ng2 {[%clk 0:00:10]}  cxd4 {[%clk 0:00:13]} 51. Rxc6 {[%clk 0:00:10]}  Rxc6 {[%clk 0:00:14]} 52. Nxd4 {[%clk 0:00:10]}  Nxd4 {[%clk 0:00:13]} 53. Qxh5 {[%clk 0:00:06]}  Qg7 {[%clk 0:00:11]} 54. f5 {[%clk 0:00:04]}  Qxe5 {[%clk 0:00:04]} 55. Bxh6 {[%clk 0:00:03]}  Kg8 {[%clk 0:00:04]} 56. Bf4 {[%clk 0:00:03]}  Qf6 {[%clk 0:00:04]} 57. Qg4+ {[%clk 0:00:02]}  Kf7 {[%clk 0:00:03]} 58. Qh5+ {[%clk 0:00:01]}  Kf8 {[%clk 0:00:02]} 59. h4 {[%clk 0:00:02]}  Kg8 {[%clk 0:00:02]} 60. Kh2 {[%clk 0:00:02]}  Nxf5 {[%clk 0:00:01]} 61. Bg5 {[%clk 0:00:02]}  Qg6 {[%clk 0:00:00]} 62. Qe2 {[%clk 0:00:02]} 1-0


[Site "https://www.chess.com"]

[Event "Titled Tuesday Blitz August 15 Late 2023"]
[White "Ozdemir, Serhan Berat"]
[Black "Szyszylo, Rafal"]
[WhiteFideId "6374611"]
[BlackFideId "1109626"]
[WhiteElo "2662"]
[BlackElo "2430"]
[Result "1-0"]
[Round "4"]
[TimeControl "180+1"]
[Date "2023.08.15"]
[WhiteClock "0:01:26"]
[BlackClock "0:00:00"]
[Board "63"]

1. e4 {[%clk 0:03:00]}  d6 {[%clk 0:02:58]} 2. d4 {[%clk 0:03:00]}  Nf6 {[%clk 0:02:58]} 3. Nc3 {[%clk 0:03:00]}  g6 {[%clk 0:02:57]} 4. Nf3 {[%clk 0:03:00]}  Bg7 {[%clk 0:02:57]} 5. Be3 {[%clk 0:03:00]}  c6 {[%clk 0:02:55]} 6. Qd2 {[%clk 0:03:00]}  b5 {[%clk 0:02:54]} 7. Bd3 {[%clk 0:02:59]}  Ng4 {[%clk 0:02:36]} 8. Bg5 {[%clk 0:02:59]}  h6 {[%clk 0:02:36]} 9. Bh4 {[%clk 0:02:59]}  O-O {[%clk 0:02:29]} 10. h3 {[%clk 0:02:51]}  Nf6 {[%clk 0:02:27]} 11. O-O-O {[%clk 0:02:46]}  b4 {[%clk 0:02:26]} 12. Ne2 {[%clk 0:02:45]}  a5 {[%clk 0:01:43]} 13. g4 {[%clk 0:02:45]}  Nfd7 {[%clk 0:01:27]} 14. Bg3 {[%clk 0:02:37]}  Qc7 {[%clk 0:01:20]} 15. Bf4 {[%clk 0:02:36]}  c5 {[%clk 0:01:10]} 16. Bb5 {[%clk 0:02:08]}  cxd4 {[%clk 0:00:57]} 17. Bxh6 {[%clk 0:02:06]}  e5 {[%clk 0:00:44]} 18. h4 {[%clk 0:02:01]}  Nc5 {[%clk 0:00:42]} 19. Bxg7 {[%clk 0:01:55]}  Kxg7 {[%clk 0:00:43]} 20. h5 {[%clk 0:01:53]}  Nxe4 {[%clk 0:00:42]} 21. Qe1 {[%clk 0:01:46]}  Bxg4 {[%clk 0:00:38]} 22. Nexd4 {[%clk 0:01:46]}  Nf6 {[%clk 0:00:21]} 23. hxg6 {[%clk 0:01:32]}  fxg6 {[%clk 0:00:17]} 24. Qd2 {[%clk 0:01:27]}  exd4 {[%clk 0:00:11]} 25. Qh6+ {[%clk 0:01:26]}  Kf7 {[%clk 0:00:11]} 26. Ng5+ {[%clk 0:01:27]}  Ke7 {[%clk 0:00:11]} 27. Rhe1+ {[%clk 0:01:27]}  Kd8 {[%clk 0:00:00]} 28. Qxf8+ {[%clk 0:01:26]} 1-0


[Site "https://www.chess.com"]

[Event "Titled Tuesday Blitz August 15 Late 2023"]
[White "Klinova, Masha"]
[Black "SmirnovAlexandrA"]
[WhiteFideId "2802015"]
[WhiteElo "2418"]
[BlackElo "2635"]
[Result "1/2-1/2"]
[Round "4"]
[TimeControl "180+1"]
[Date "2023.08.15"]
[WhiteClock "0:01:22"]
[BlackClock "0:01:00"]
[Board "65"]

1. e4 {[%clk 0:03:00]}  d5 {[%clk 0:02:57]} 2. exd5 {[%clk 0:03:00]}  Qxd5 {[%clk 0:02:58]} 3. Nc3 {[%clk 0:03:00]}  Qd6 {[%clk 0:02:58]} 4. d4 {[%clk 0:03:00]}  Nf6 {[%clk 0:02:58]} 5. Nb5 {[%clk 0:02:59]}  Qd8 {[%clk 0:02:56]} 6. Bf4 {[%clk 0:02:59]}  Na6 {[%clk 0:02:50]} 7. c4 {[%clk 0:02:59]}  g6 {[%clk 0:02:42]} 8. Nf3 {[%clk 0:02:56]}  Bg7 {[%clk 0:02:43]} 9. Be2 {[%clk 0:02:56]}  O-O {[%clk 0:02:42]} 10. O-O {[%clk 0:02:55]}  c6 {[%clk 0:02:41]} 11. Nc3 {[%clk 0:02:54]}  Nc7 {[%clk 0:02:40]} 12. Be5 {[%clk 0:02:50]}  Bf5 {[%clk 0:02:38]} 13. Qb3 {[%clk 0:02:47]}  b5 {[%clk 0:02:23]} 14. cxb5 {[%clk 0:02:45]}  Nxb5 {[%clk 0:02:24]} 15. Nxb5 {[%clk 0:02:45]}  cxb5 {[%clk 0:02:25]} 16. Qxb5 {[%clk 0:02:36]}  Rc8 {[%clk 0:02:11]} 17. Rfc1 {[%clk 0:02:34]}  Qb6 {[%clk 0:02:06]} 18. Qxb6 {[%clk 0:02:26]}  axb6 {[%clk 0:02:07]} 19. Bc4 {[%clk 0:02:19]}  Bh6 {[%clk 0:02:01]} 20. Rc3 {[%clk 0:01:51]}  Ne4 {[%clk 0:02:01]} 21. Ba6 {[%clk 0:01:39]}  Nxc3 {[%clk 0:01:42]} 22. Bxc8 {[%clk 0:01:38]}  Ne2+ {[%clk 0:01:43]} 23. Kf1 {[%clk 0:01:38]}  Rxc8 {[%clk 0:01:44]} 24. Kxe2 {[%clk 0:01:38]}  Rc2+ {[%clk 0:01:44]} 25. Kf1 {[%clk 0:01:37]}  Rxb2 {[%clk 0:01:45]} 26. d5 {[%clk 0:01:36]}  Bd3+ {[%clk 0:01:41]} 27. Kg1 {[%clk 0:01:36]}  Rb5 {[%clk 0:01:38]} 28. d6 {[%clk 0:01:33]}  exd6 {[%clk 0:01:39]} 29. Bxd6 {[%clk 0:01:33]}  Bg7 {[%clk 0:01:25]} 30. Re1 {[%clk 0:01:31]}  Rb1 {[%clk 0:01:25]} 31. Rxb1 {[%clk 0:01:30]}  Bxb1 {[%clk 0:01:26]} 32. a3 {[%clk 0:01:30]}  b5 {[%clk 0:01:21]} 33. Kf1 {[%clk 0:01:27]}  Bd3+ {[%clk 0:01:17]} 34. Ke1 {[%clk 0:01:27]}  Bc3+ {[%clk 0:01:18]} 35. Kd1 {[%clk 0:01:26]}  f5 {[%clk 0:01:09]} 36. Ne5 {[%clk 0:01:23]}  Bxe5 {[%clk 0:01:00]} 37. Bxe5 {[%clk 0:01:22]} 1/2-1/2


[Site "https://www.chess.com"]